bitfinex/quotes_SOLUSD_20251226
["timestamp","ask_amount","ask_price","bid_price","bid_amount"]
[1766716653483,3.36902557,124.0,123.96,8.74676966]
[1766716653701,3.36902557,124.0,123.97,0.68]
[1766716653887,8.06126561,124.05,123.97,8.06593377]
[1766716654096,2.15996431,124.03,123.99,0.68]
[1766716654624,2.84996431,124.03,123.99,0.68]
[1766716654811,2.15996431,124.02,123.99,0.68]
[1766716655219,0.69,124.03,123.99,8.7451374]
[1766716655406,2.84996431,124.03,123.99,8.7451374]
[1766716656321,2.15996431,124.02,123.99,0.68]
[1766716656694,2.15996431,124.02,123.97,21.34386603]
[1766716656898,2.15996431,124.0,123.97,0.68]
[1766716657228,2.15996431,124.0,123.96,8.74704564]
[1766716657409,2.84996431,124.0,123.96,0.68]
[1766716657609,0.69,124.0,123.96,0.68]
[1766716658025,5.78776045,123.99,123.96,0.68]
[1766716658404,0.69,124.02,123.97,0.68]
[1766716658604,5.78776045,124.0,123.97,0.68]
[1766716659004,6.47776045,124.01,123.97,6.46776045]
[1766716659415,6.47776045,124.01,123.97,14.53411045]
[1766716659605,6.47776045,124.01,123.97,8.74635]
[1766716660396,5.78776045,124.02,123.97,13.85411045]
[1766716660599,5.78776045,124.02,123.98,0.68]
[1766716660799,0.69,124.03,123.98,6.46776045]
[1766716661020,6.47776045,124.02,123.98,0.68]
[1766716662005,6.47776045,124.02,123.97,8.06635]
[1766716662210,6.47776045,124.02,123.97,14.51411045]
[1766716663411,0.69,124.02,123.97,14.51411045]
[1766716663639,6.47776045,124.02,123.98,0.66]
[1766716664234,8.06260719,124.03,123.97,8.06635]
[1766716664425,0.69,124.07,124.0,16.90543341]
[1766716664621,5.78776045,124.05,124.01,0.68]
[1766716664837,6.47776045,124.05,124.01,0.68]
[1766716665034,0.69,124.04,124.0,16.22543341]
[1766716665266,6.47776045,124.04,124.0,16.90543341]
[1766716665441,0.69,124.04,124.0,16.90543341]
[1766716665640,6.47776045,124.04,124.0,16.90543341]
[1766716666324,15.39,124.06,124.01,5.78776045]
[1766716666517,30.58344991,124.1,124.03,0.68]
[1766716666518,5.78776045,124.07,124.03,0.68]
[1766716666718,0.69,124.08,124.0,38.66306355]
[1766716666926,8.05866709,124.09,124.02,6.46776045]
[1766716666927,5.78776045,124.07,124.02,6.46776045]
[1766716667135,6.47776045,124.04,124.0,19.18177323]
[1766716667625,5.78776045,124.05,124.0,24.28953368]
[1766716667945,6.47776045,124.05,124.0,24.96953368]
[1766716668728,6.47776045,124.05,124.0,19.18177323]
[1766716668935,5.78776045,124.04,124.0,19.18177323]
[1766716669130,0.69,124.05,124.0,19.18177323]
[1766716669319,5.78776045,124.04,124.0,24.96953368]
[1766716669645,0.69,124.05,124.0,24.96953368]
[1766716669829,5.78776045,124.04,124.0,24.96953368]
[1766716670029,5.78776045,124.04,124.0,19.18177323]
[1766716670946,6.47776045,124.04,124.0,19.18177323]
[1766716675520,5.78776045,124.02,123.99,8.06499111]
[1766716675749,0.69,124.03,123.99,8.74499111]
[1766716675750,6.47776045,124.03,123.99,8.74499111]
[1766716676171,0.69,124.03,123.99,8.74499111]
[1766716676322,5.78776045,124.02,123.99,8.74499111]
[1766716676533,6.47776045,124.01,123.97,8.74607775]
[1766716676738,6.47776045,124.01,123.99,10.43767296]
[1766716677061,0.69,123.99,123.95,0.68]
[1766716677240,5.78776045,123.97,123.95,0.68]
[1766716677440,5.78776045,123.97,123.95,8.74764506]
[1766716677638,5.78776045,123.97,123.95,19.18531802]
[1766716677849,0.69,123.99,123.97,10.43767296]
[1766716678148,5.78776045,123.98,123.97,10.43767296]
[1766716678958,0.69,123.99,123.95,8.06764506]
[1766716679162,5.78776045,123.97,123.95,8.06764506]
[1766716679364,5.78776045,123.97,123.96,10.43767296]
[1766716679659,5.78776045,123.97,123.95,8.06764506]
[1766716679866,5.78776045,123.97,123.94,8.74818158]
[1766716680062,2.16160008,123.96,123.93,8.06905646]
[1766716680297,2.16160008,123.96,123.93,8.74905646]
[1766716680762,2.16160008,123.98,123.94,8.06813162]
[1766716680963,0.69,124.01,123.96,0.68]
[1766716681167,2.16160008,123.99,123.96,0.68]
[1766716681363,0.69,124.0,123.96,0.68]
[1766716681661,0.69,124.0,123.95,2.16160008]
[1766716681662,2.16160008,124.02,123.98,0.68]
[1766716681967,2.16160008,124.03,123.99,0.68]
[1766716682338,2.16160008,124.02,123.98,0.68]
[1766716682756,2.16160008,124.02,123.99,0.68]
[1766716683167,2.16160008,124.02,123.99,8.74487215]
[1766716683461,0.69,124.04,123.99,8.74487215]
[1766716683462,2.16160008,124.04,124.0,0.68]
[1766716684079,5.78352173,124.04,124.0,0.68]
[1766716684583,5.78352173,124.03,124.0,0.68]
[1766716684772,5.78352173,124.03,123.99,8.74487215]
[1766716686283,5.78352173,124.02,123.99,0.68]
[1766716686579,5.78352173,124.0,123.98,10.43767296]
[1766716686890,5.78352173,123.99,123.95,0.68]
[1766716687072,6.47352173,123.99,123.95,0.68]
[1766716687259,5.78352173,123.98,123.95,8.74773195]
[1766716687583,5.78352173,123.98,123.95,0.68]
[1766716687888,5.78352173,123.98,123.95,8.74755337]
[1766716689473,0.69,123.99,123.95,0.68]
[1766716689474,5.78352173,123.97,123.95,0.68]
[1766716689670,5.78352173,123.97,123.94,8.7481784]
[1766716689871,6.47352173,123.97,123.94,8.0681784]
[1766716690486,5.78352173,123.98,123.94,8.0681784]
[1766716690687,5.78352173,123.99,123.96,0.68]
[1766716690893,5.78352173,123.98,123.96,0.68]
[1766716691063,0.69,123.99,123.95,0.68]
[1766716691264,5.78352173,123.98,123.95,0.68]
[1766716691465,5.78352173,123.99,123.95,0.68]
[1766716692503,5.78352173,123.99,123.96,8.06711842]
[1766716693176,0.69,124.0,123.96,8.06711842]
[1766716693377,5.78352173,123.99,123.95,8.74750811]
[1766716694680,5.78352173,123.98,123.95,0.68]
[1766716695304,5.78352173,123.98,123.93,10.43767296]
[1766716695305,6.44352173,123.97,123.93,11.11767296]
[1766716695694,5.78352173,123.97,123.94,0.68]
[1766716696096,5.78352173,123.95,123.93,10.43767296]
[1766716696310,5.78352173,123.95,123.91,8.95011607]
[1766716696985,5.78352173,123.94,123.91,0.88]
[1766716697386,5.78352173,123.94,123.91,8.9503501]
[1766716697603,6.44352173,123.92,123.91,0.2]
[1766716697782,6.44352173,123.92,123.88,0.2]
[1766716697993,5.78352173,123.91,123.88,8.95227634]
[1766716698406,5.78352173,123.92,123.89,0.68]
[1766716698586,5.78352173,123.92,123.89,8.75158574]
[1766716699000,5.78352173,123.93,123.89,8.75158574]
[1766716699211,5.78352173,123.92,123.89,8.75158574]
[1766716699916,0.66,123.93,123.89,8.75158574]
[1766716700117,5.78352173,123.92,123.89,8.75158574]
[1766716700518,0.66,123.93,123.89,8.75158574]
[1766716700811,5.78352173,123.95,123.91,0.68]
[1766716701413,5.78352173,123.94,123.91,0.68]
[1766716701891,0.66,123.95,123.91,0.68]
[1766716702095,5.78352173,123.93,123.91,0.68]
[1766716702514,5.78352173,123.93,123.89,8.07158574]
[1766716702837,0.66,123.93,123.88,19.38976169]
[1766716703008,5.78352173,123.91,123.88,8.27208873]
[1766716703199,0.66,123.93,123.89,8.75158211]
[1766716703405,5.78352173,123.92,123.89,8.75158211]
[1766716703601,0.66,123.93,123.89,0.68]
[1766716703807,5.78352173,123.91,123.88,0.88]
[1766716704015,0.66,123.92,123.88,0.88]
[1766716704312,5.78352173,123.91,123.88,0.88]
[1766716704905,5.78352173,123.9,123.88,0.2]
[1766716705138,25.15767296,123.97,123.88,0.2]
[1766716705419,25.15767296,123.97,123.88,0.88]
[1766716705420,5.78352173,123.91,123.88,0.88]
[1766716705931,5.78352173,123.92,123.89,0.68]
[1766716706419,5.78352173,123.93,123.89,0.68]
[1766716706624,5.78352173,123.91,123.89,0.68]
[1766716706807,5.78352173,123.91,123.88,0.2]
[1766716707004,0.66,123.92,123.88,0.2]
[1766716707199,5.78352173,123.91,123.88,0.88]
[1766716708413,5.78352173,123.91,123.89,0.68]
[1766716709321,5.78352173,123.91,123.88,8.27207188]
[1766716709524,5.78352173,123.91,123.89,0.68]
[1766716710312,5.78352173,123.92,123.89,0.68]
[1766716710906,0.66,123.93,123.89,0.68]
[1766716711224,5.78352173,123.92,123.89,0.68]
[1766716711524,5.78352173,123.9,123.88,0.2]
[1766716711732,5.78352173,123.9,123.88,0.88]
[1766716711909,2.16381339,123.9,123.88,0.88]
[1766716712223,2.16381339,123.91,123.88,0.88]
[1766716712412,0.66,123.92,123.88,0.88]
[1766716712611,2.16381339,123.91,123.88,0.88]
[1766716713212,2.16381339,123.9,123.88,0.88]
[1766716713930,3.38177135,123.89,123.86,10.63767296]
[1766716714827,3.38177135,123.89,123.86,0.2]
[1766716715226,3.38177135,123.88,123.86,0.2]
[1766716715406,3.38177135,123.87,123.86,0.2]
[1766716715604,3.38177135,123.87,123.85,0.2]
[1766716715815,3.38177135,123.9,123.85,0.2]
[1766716716019,3.38177135,123.87,123.86,0.68]
[1766716716220,3.38177135,123.87,123.85,0.2]
[1766716716629,3.38177135,123.86,123.85,0.2]
[1766716717010,3.38177135,123.86,123.81,3.65046905]
[1766716717230,3.38177135,123.85,123.81,11.72688982]
[1766716717415,3.38177135,123.85,123.81,22.16456278]
[1766716717620,3.38177135,123.85,123.81,11.72688982]
[1766716717812,3.38177135,123.85,123.82,10.43767296]
[1766716718013,3.38177135,123.85,123.81,11.72688982]
[1766716718232,3.38177135,123.85,123.82,10.43767296]
[1766716718422,3.38177135,123.84,123.81,11.72688982]
[1766716719220,3.38177135,123.83,123.81,3.65046905]
[1766716719723,8.0732055,123.87,123.81,3.65046905]
[1766716720042,3.38177135,123.83,123.81,3.65046905]
[1766716721138,3.38177135,123.84,123.81,3.65046905]
[1766716721536,8.07297973,123.87,123.81,11.72729536]
[1766716721912,3.38177135,123.86,123.81,15.10906671]
[1766716722109,8.07240437,123.88,123.81,15.10906671]
[1766716722426,3.38177135,123.85,123.81,15.10906671]
[1766716722836,3.38177135,123.85,123.81,11.72729536]
[1766716723033,3.38177135,123.85,123.81,15.10906671]
[1766716723241,3.38177135,123.85,123.81,11.72729536]
[1766716724116,3.38177135,123.84,123.81,11.72729536]
[1766716724316,3.38177135,123.84,123.81,3.65046905]
[1766716724624,8.07322084,123.87,123.81,11.7272803]
[1766716724816,8.07322084,123.87,123.81,3.65046905]
[1766716725018,3.38177135,123.83,123.81,3.65046905]
[1766716726419,14.72,123.89,123.81,14.08814201]
[1766716726420,3.38177135,123.82,123.81,14.08814201]
[1766716726623,3.38177135,123.82,123.78,3.56797286]
[1766716726842,3.38177135,123.81,123.78,3.56797286]
[1766716727139,3.38177135,123.83,123.78,6.94974421]
[1766716727319,3.38177135,123.82,123.78,3.56797286]
[1766716727520,3.38177135,123.82,123.78,6.94974421]
[1766716727720,3.38177135,123.81,123.78,11.64669525]
[1766716728136,3.38177135,123.82,123.78,11.64669525]
[1766716728540,3.38177135,123.83,123.78,11.64669525]
[1766716728739,3.38177135,123.83,123.79,13.81944431]
[1766716729340,3.38177135,123.83,123.79,10.43767296]
[1766716729644,3.38177135,123.82,123.79,10.43767296]
[1766716730230,3.38177135,123.81,123.8,10.43767296]
[1766716730432,3.38177135,123.81,123.78,11.64636838]
[1766716732448,3.38177135,123.79,123.78,3.56797286]
[1766716732659,3.38177135,123.79,123.76,3.68361153]
[1766716732831,3.38177135,123.78,123.76,3.68361153]
[1766716733349,14.72,123.83,123.76,11.76349785]
[1766716733540,3.38177135,123.79,123.76,11.76349785]
[1766716733946,3.38177135,123.78,123.76,11.76349785]
[1766716734237,8.07671032,123.82,123.76,3.68361153]
[1766716734445,3.38177135,123.78,123.76,3.68361153]
[1766716735441,3.38177135,123.77,123.76,3.68361153]
[1766716735642,3.38177135,123.77,123.75,0.2]
[1766716735827,3.38177135,123.76,123.75,10.63767296]
[1766716736031,8.07716059,123.81,123.75,10.63767296]
[1766716736237,22.81558749,123.83,123.75,18.71824777]
[1766716736426,3.38177135,123.78,123.75,18.71824777]
[1766716736626,3.38177135,123.77,123.75,18.71824777]
[1766716736824,3.38177135,123.77,123.75,10.63767296]
[1766716737029,3.38177135,123.76,123.75,10.63767296]
[1766716737837,8.07779824,123.8,123.75,10.63767296]
[1766716738146,3.38177135,123.76,123.75,10.63767296]
[1766716738344,3.38177135,123.77,123.75,10.63767296]
[1766716738546,3.38177135,123.76,123.75,10.63767296]
[1766716739049,3.38177135,123.77,123.75,10.63767296]
[1766716739255,8.0762397,123.82,123.75,18.7183893]
[1766716739561,3.38177135,123.79,123.75,18.7183893]
[1766716740256,24.26,123.9,123.78,3.38177135]
[1766716740257,40.36211182,123.88,123.78,3.38177135]
[1766716740474,3.38177135,123.82,123.78,3.38177135]
[1766716740757,3.38177135,123.81,123.77,3.38177135]
[1766716740924,13.81944431,123.84,123.76,3.38177135]
[1766716741124,3.38177135,123.79,123.75,22.10016065]
[1766716741425,3.38177135,123.78,123.75,10.63767296]
[1766716741626,8.07780087,123.8,123.75,0.2]
[1766716741844,3.38177135,123.77,123.75,0.2]
[1766716742527,8.07780087,123.8,123.75,0.2]
[1766716742745,3.38177135,123.77,123.75,0.2]
[1766716743947,8.07780087,123.8,123.75,0.2]
[1766716744446,9.43955641,123.77,123.75,0.2]
[1766716746049,8.07754442,123.8,123.75,0.2]
[1766716746050,9.43955641,123.76,123.75,0.2]
[1766716746643,28.27140548,123.8,123.75,0.2]
[1766716746823,9.43955641,123.76,123.75,0.2]
[1766716747554,9.43955641,123.78,123.75,0.2]
[1766716747754,9.43955641,123.77,123.75,0.2]
[1766716748054,9.43955641,123.76,123.75,0.2]
[1766716748352,14.74,123.82,123.75,0.2]
[1766716748524,14.74,123.82,123.73,3.80111534]
[1766716748525,9.43955641,123.76,123.73,3.80111534]
[1766716748730,9.43955641,123.74,123.73,3.80111534]
[1766716749155,9.43955641,123.74,123.71,3.8257922]
[1766716749357,9.43955641,123.72,123.71,3.8257922]
[1766716749849,8.08159487,123.74,123.68,3.74329601]
[1766716750156,9.43955641,123.71,123.68,3.74329601]
[1766716750358,9.43955641,123.71,123.68,11.82857252]
[1766716750653,9.43955641,123.72,123.68,11.82857252]
[1766716750851,9.43955641,123.74,123.69,9.43955641]
[1766716751054,9.43955641,123.75,123.71,10.43767296]
[1766716751252,9.43955641,123.74,123.71,10.43767296]
[1766716751460,9.43955641,123.72,123.68,11.82857252]
[1766716751632,9.43955641,123.71,123.68,14.18096897]
[1766716751828,9.43955641,123.7,123.68,14.18096897]
[1766716752034,9.43955641,123.75,123.68,3.74329601]
[1766716752332,9.43955641,123.7,123.68,3.74329601]
[1766716752530,9.43955641,123.69,123.68,3.74329601]
[1766716752732,9.43955641,123.69,123.67,0.2]
[1766716752947,9.43955641,123.68,123.67,0.2]
[1766716753351,25.17767296,123.72,123.67,0.2]
[1766716753553,9.43955641,123.68,123.67,0.2]
[1766716753757,8.08419295,123.7,123.67,0.2]
[1766716753935,9.43955641,123.68,123.66,4.05893468]
[1766716754129,9.43955641,123.67,123.66,4.05893468]
[1766716754742,9.43955641,123.67,123.64,0.2]
[1766716754943,8.08419295,123.7,123.64,0.2]
[1766716754944,9.43955641,123.66,123.64,0.2]
[1766716755387,10.43767296,123.72,123.65,9.43955641]
[1766716755536,9.43955641,123.7,123.66,8.0866893]
[1766716755855,9.43955641,123.7,123.66,28.30341257]
[1766716756236,9.43955641,123.69,123.66,8.0866893]
[1766716756435,9.43955641,123.7,123.66,8.0866893]
[1766716757337,9.43955641,123.71,123.66,17.52624571]
[1766716757648,9.43955641,123.7,123.66,8.0866893]
[1766716758858,9.43955641,123.69,123.65,10.43767296]
[1766716759053,9.43955641,123.69,123.65,8.0870867]
[1766716759861,28.28595266,123.74,123.65,37.74500137]
[1766716760161,28.28595266,123.74,123.65,28.30544496]
[1766716760162,14.74,123.73,123.65,28.30544496]
[1766716760371,9.43955641,123.7,123.65,37.74500137]
[1766716760654,14.74,123.73,123.66,9.43955641]
[1766716760861,14.74,123.73,123.65,28.30544496]
[1766716761056,9.43955641,123.72,123.67,9.43955641]
[1766716761446,9.43955641,123.71,123.65,28.30544496]
[1766716761761,9.43955641,123.7,123.65,37.74500137]
[1766716762057,22.82244178,123.73,123.66,9.43955641]
[1766716762357,9.43955641,123.73,123.68,10.43767296]
[1766716762544,9.43955641,123.71,123.68,10.43767296]
[1766716762859,9.43955641,123.69,123.65,8.0870867]
[1766716764860,9.43955641,123.69,123.64,17.72734881]
[1766716765163,9.43955641,123.66,123.64,0.2]
[1766716765365,25.17767296,123.71,123.64,8.28789476]
[1766716765548,9.43955641,123.67,123.64,8.28789476]
[1766716765750,14.74,123.7,123.64,8.28789476]
[1766716765950,3.39363516,123.67,123.64,8.28789476]
[1766716766334,3.39363516,123.67,123.64,0.2]
[1766716766547,3.39363516,123.67,123.64,8.28788977]
[1766716767361,3.39363516,123.67,123.64,0.2]
[1766716767561,43.03467174,123.7,123.63,0.2]
[1766716767562,3.39363516,123.65,123.63,0.2]
[1766716767763,43.03467174,123.7,123.63,0.2]
[1766716767960,3.39363516,123.65,123.63,0.2]
[1766716768161,3.39363516,123.66,123.63,0.2]
[1766716768359,3.39363516,123.67,123.63,8.28854035]
[1766716768753,14.74,123.69,123.63,8.28854035]
[1766716768754,18.52193947,123.7,123.63,8.28854035]
[1766716768948,25.17767296,123.7,123.63,28.5101694]
[1766716769257,3.39363516,123.68,123.63,31.90380456]
[1766716769456,14.74,123.71,123.64,3.39363516]
[1766716769771,3.39363516,123.69,123.64,3.39363516]
[1766716769971,10.43767296,123.72,123.66,3.39363516]
[1766716770164,3.39363516,123.69,123.65,8.0873433]
[1766716770463,3.39363516,123.7,123.65,11.48097846]
[1766716770664,18.51999966,123.73,123.65,31.69933672]
[1766716770873,3.39363516,123.73,123.68,13.83130812]
[1766716771062,3.39363516,123.71,123.68,10.43767296]
[1766716771240,3.39363516,123.69,123.65,38.74337452]
[1766716771769,14.74,123.75,123.65,42.13700968]
[1766716772070,9.44927168,123.7,123.65,38.74337452]
[1766716772246,8.08241172,123.73,123.65,48.1926462]
[1766716772447,9.44927168,123.7,123.65,48.1926462]
[1766716772651,9.44927168,123.66,123.63,0.2]
[1766716772843,9.44927168,123.68,123.64,8.08793401]
[1766716773057,9.44927168,123.67,123.64,8.08793401]
[1766716773258,10.43767296,123.71,123.64,8.08793401]
[1766716773469,9.44927168,123.66,123.63,0.2]
[1766716773976,10.43767296,123.71,123.63,0.2]
[1766716774155,8.08407437,123.7,123.63,8.28845859]
[1766716775056,22.82407437,123.7,123.63,8.28845859]
[1766716776173,43.0342603,123.7,123.63,0.2]
[1766716776545,5.81872009,123.67,123.63,8.28850689]
[1766716776953,5.81872009,123.67,123.63,14.10722698]
[1766716777158,22.82407437,123.7,123.63,14.10722698]
[1766716777358,5.81872009,123.68,123.63,8.28850689]
[1766716777562,22.82407437,123.7,123.63,8.28850689]
[1766716777783,5.81872009,123.67,123.63,8.28850689]
[1766716778479,5.81872009,123.66,123.63,8.28850689]
[1766716778768,5.81872009,123.65,123.63,0.2]
[1766716779078,5.81872009,123.64,123.63,0.2]
[1766716779957,5.81872009,123.65,123.63,0.2]
[1766716781070,5.81872009,123.64,123.63,0.2]
[1766716781578,22.8258356,123.68,123.63,0.2]
[1766716781980,5.81872009,123.64,123.63,0.2]
[1766716782181,5.81872009,123.64,123.62,0.2]
[1766716782361,5.81872009,123.63,123.61,1e-08]
[1766716782562,5.81872009,123.62,123.61,1e-08]
[1766716783258,8.08746707,123.65,123.61,1e-08]
[1766716783459,5.81872009,123.62,123.61,1e-08]
[1766716785677,8.08823977,123.64,123.61,1e-08]
[1766716785878,5.81872009,123.62,123.61,1e-08]
[1766716787369,5.81872009,123.63,123.61,1e-08]
[1766716787571,5.81872009,123.64,123.61,1e-08]
[1766716787981,5.81872009,123.63,123.61,1e-08]
[1766716788984,5.81872009,123.62,123.61,1e-08]
[1766716789477,5.81872009,123.63,123.61,1e-08]
[1766716790074,5.81872009,123.62,123.61,1e-08]
[1766716790592,0.67,123.64,123.61,1e-08]
[1766716790798,6.48872009,123.62,123.61,1e-08]
[1766716791295,5.81872009,123.62,123.61,1e-08]
[1766716791475,6.48872009,123.64,123.61,1e-08]
[1766716791995,0.67,123.64,123.61,8.08996036]
[1766716792298,6.48872009,123.67,123.63,0.68]
[1766716792593,6.48872009,123.65,123.61,19.20763332]
[1766716792788,5.81872009,123.62,123.61,1e-08]
[1766716792988,6.48872009,123.62,123.61,1e-08]
[1766716793577,6.48872009,123.62,123.58,22.44779372]
[1766716793908,6.48872009,123.62,123.59,8.77102063]
[1766716794070,2.84381236,123.62,123.59,8.09102063]
[1766716794268,2.84381236,123.62,123.59,8.77102063]
[1766716794269,0.67,123.62,123.59,8.77102063]
[1766716794476,2.84381236,123.62,123.59,8.09102063]
[1766716795293,0.67,123.62,123.59,8.09102063]
[1766716795494,2.84381236,123.62,123.59,8.09102063]
[1766716795866,0.67,123.62,123.59,8.09102063]
[1766716796066,2.84381236,123.62,123.59,8.09102063]
[1766716796287,0.67,123.61,123.58,22.44796777]
[1766716796495,0.67,123.64,123.59,0.68]
[1766716796802,2.17381236,123.62,123.59,0.68]
[1766716797295,2.17381236,123.6,123.58,14.35629211]
[1766716797489,2.17381236,123.61,123.58,22.44794442]
[1766716797792,8.0874867,123.65,123.59,0.68]
[1766716797793,2.17381236,123.62,123.59,0.68]
[1766716798183,2.84381236,123.62,123.59,0.68]
[1766716798390,2.84381236,123.62,123.59,8.77125724]
[1766716798595,2.17381236,123.61,123.59,8.09125724]
[1766716798777,0.67,123.62,123.58,14.35629211]
[1766716799097,2.84381236,123.61,123.58,22.44816565]
[1766716800277,2.84381236,123.62,123.58,23.12816565]
[1766716800603,2.17381236,123.63,123.6,0.68]
[1766716801196,0.67,123.63,123.6,0.68]
[1766716801497,0.67,123.61,123.58,23.12816565]
[1766716801693,2.17381236,123.62,123.58,23.12816565]
[1766716801899,2.84381236,123.62,123.58,23.12816565]
[1766716802395,2.84381236,123.62,123.58,25.30197801]
[1766716802591,0.67,123.62,123.58,45.53178865]
[1766716802768,2.84381236,123.62,123.58,45.53178865]
[1766716802972,14.76,123.65,123.59,0.68]
[1766716803281,0.67,123.64,123.59,2.17381236]
[1766716803484,2.17381236,123.64,123.6,0.68]
[1766716803682,0.67,123.62,123.58,45.53178865]
[1766716803888,14.76,123.65,123.58,44.85178865]
[1766716804090,2.17381236,123.65,123.61,11.11767296]
[1766716804305,0.67,123.68,123.62,0.68]
[1766716804499,2.84381236,123.67,123.63,8.76865162]
[1766716804802,0.67,123.65,123.62,8.08905043]
[1766716804984,2.84381236,123.65,123.62,8.08905043]
[1766716805176,0.67,123.66,123.62,28.99231527]
[1766716805377,0.67,123.66,123.62,8.76905043]
[1766716805577,2.84381236,123.66,123.62,8.76905043]
[1766716805799,0.67,123.66,123.62,8.76905043]
[1766716805975,2.17381236,123.64,123.61,10.43767296]
[1766716806172,15.43,123.67,123.63,0.68]
[1766716806409,2.84381236,123.67,123.64,8.08799741]
[1766716806584,0.67,123.66,123.64,8.08799741]
[1766716807107,0.67,123.66,123.63,8.76856103]
[1766716807695,17.60381236,123.68,123.63,10.94237339]
[1766716807924,2.84381236,123.67,123.63,8.76856103]
[1766716808210,0.67,123.67,123.63,10.94237339]
[1766716809089,2.17381236,123.69,123.65,2.85381236]
[1766716809284,0.67,123.69,123.65,2.85381236]
[1766716809685,0.67,123.68,123.65,0.68]
[1766716810300,0.67,123.68,123.65,2.85381236]
[1766716810494,0.67,123.68,123.65,10.94063796]
[1766716810804,0.67,123.7,123.65,8.7668256]
[1766716811108,2.84381236,123.69,123.65,8.7668256]
[1766716811702,0.67,123.68,123.65,8.7668256]
[1766716812283,0.67,123.7,123.66,0.68]
[1766716812805,2.84381236,123.69,123.65,28.98518386]
[1766716813004,2.84381236,123.69,123.65,31.15899622]
[1766716813005,0.67,123.69,123.65,31.15899622]
[1766716813209,0.67,123.69,123.65,28.98518386]
[1766716813402,0.67,123.69,123.66,0.68]
[1766716813595,2.84381236,123.71,123.67,0.68]
[1766716813797,0.67,123.7,123.67,0.68]
[1766716814005,14.76,123.72,123.68,2.17381236]
[1766716814208,14.76,123.72,123.67,10.43767296]
[1766716814209,0.68,123.72,123.67,10.43767296]
[1766716814506,2.85381236,123.7,123.67,10.43767296]
[1766716814693,0.68,123.7,123.67,10.43767296]
[1766716815102,0.68,123.71,123.67,11.09767296]
[1766716815298,0.68,123.7,123.67,11.09767296]
[1766716815507,0.68,123.7,123.67,19.18325171]
[1766716816702,2.85381236,123.7,123.67,11.09767296]
[1766716816900,2.85381236,123.7,123.67,19.18370451]
[1766716817195,0.68,123.69,123.67,18.52370451]
[1766716817711,0.68,123.69,123.67,10.43767296]
[1766716817712,0.68,123.68,123.67,10.43767296]
[1766716818211,8.08146112,123.74,123.67,18.52370214]
[1766716818393,0.68,123.7,123.67,18.52370214]
[1766716819586,2.85381236,123.7,123.67,18.52370214]
[1766716820914,2.17381236,123.69,123.67,10.43767296]
[1766716821112,2.85381236,123.69,123.66,8.086487]
[1766716821912,14.76,123.73,123.67,0.66]
[1766716822115,2.17381236,123.71,123.67,0.66]
[1766716822415,0.68,123.71,123.67,0.66]
[1766716822613,2.85381236,123.71,123.67,0.66]
[1766716823123,0.68,123.71,123.67,2.83381236]
[1766716823418,0.68,123.71,123.67,0.66]
[1766716823594,0.68,123.71,123.68,8.08538163]
[1766716823800,2.85381236,123.71,123.68,8.08538163]
[1766716824123,0.68,123.71,123.68,8.08538163]
[1766716824317,2.17381236,123.72,123.69,0.66]
[1766716824624,2.85381236,123.72,123.69,0.66]
[1766716824931,0.68,123.72,123.69,0.66]
[1766716825095,2.85381236,123.72,123.69,0.66]
[1766716825295,0.68,123.72,123.69,8.74413194]
[1766716825498,2.85381236,123.73,123.69,8.74413194]
[1766716826025,0.68,123.73,123.69,10.9179443]
[1766716826203,0.68,123.73,123.69,8.74413194]
[1766716826399,2.85381236,123.73,123.69,8.74413194]
[1766716826737,2.85381236,123.72,123.69,8.74413194]
[1766716826938,0.68,123.74,123.7,0.66]
[1766716827318,2.85381236,123.74,123.7,8.74375733]
[1766716827630,2.85381236,123.73,123.7,8.08375733]
[1766716828756,0.68,123.72,123.7,10.43767296]
[1766716829655,0.68,123.72,123.7,18.52155714]
[1766716830022,0.68,123.72,123.7,10.43767296]
[1766716831239,2.17381236,123.71,123.68,8.08537393]
[1766716831443,2.76381236,123.71,123.68,8.08537393]
[1766716831828,2.76381236,123.71,123.68,8.74537393]
[1766716832723,0.59,123.71,123.68,0.66]
[1766716833025,2.76381236,123.71,123.68,0.66]
[1766716834048,3.39219478,123.7,123.68,0.66]
[1766716834545,3.98219478,123.71,123.68,0.66]